[Event "XXI Torredembarra Open 2019"]
[Site "Torredembarra"]
[Date "2019.07.12"]
[Round "7.9"]
[White "Zhukov, Anton"]
[Black "Molano Lafuente, Ismael"]
[Result "0-1"]
[ECO "B06"]
[WhiteElo "2087"]
[BlackElo "2071"]
[Annotator "NA"]
[PlyCount "146"]
[EventDate "2019.07.06"]
[EventType "swiss"]
[EventCountry "ESP"]
[SourceTitle "playchess.com"]
[Source "ChessBase"]
[SourceQuality "1"]
[TimeControl "5400+30"]

1. d4 {[%emt 0:00:00]} g6 {[%emt 0:00:09]} 2. e4 {[%emt 0:00:00]} Bg7 {[%emt 0:00:05]} 3. Nf3 {[%emt 0:00:08]} d6 {[%emt 0:02:52]} 4. Bf4 {[%emt 0:03:47]} a6 {[%emt 0:00:43]} 5. c3 {[%emt 0:01:09]} h6 {[%emt 0:00:00]} 6. Nbd2 {[%emt 0:00:34]} e6 {[%emt 0:00:33]} 7. Bd3 {[%emt 0:00:36]} Nd7 {[%emt 0:01:29]} 8. Nc4 {[%emt 0:02:51]} Ne7 {[%emt 0:01:58]} 9. Qd2 {[%emt 0:04:46]} g5 {[%emt 0:05:59]} 10. Bg3 {[%emt 0:02:12]} Ng6 {[%emt 0:04:41]} 11. e5 {[%emt 0:07:49]} d5 {[%emt 0:05:50]} 12. Bxg6 {[%emt 0:00:15]} fxg6 {[%emt 0:00:00]} 13. Ne3 h5 {[%emt 0:12:56]} 14. h4 {[%emt 0:07:42]} g4 {[%emt 0:00:00]} 15. Ng5 {[%emt 0:00:11]} Nf8 {[%emt 0:12:33]} 16. O-O {[%emt 0:08:38]} Bh6 {[%emt 0:00:00]} 17. Bf4 {[%emt 0:00:12]} Qe7 {[%emt 0:00:41]} 18. g3 {[%emt 0:01:03]} Bd7 {[%emt 0:00:44]} 19. Ng2 {[%emt 0:06:00]} Bb5 {[%emt 0:00:00]} 20. Rfe1 Bxg5 {[%emt 0:04:30]} 21. Bxg5 {[%emt 0:00:25]} Qf7 {[%emt 0:01:52]} 22. a4 {[%emt 0:01:01]} Bd7 {[%emt 0:08:40]} 23. Qd3 {[%emt 0:02:15]} Qf5 {[%emt 0:05:54]} 24. Re3 {[%emt 0:03:27]} Nh7 {[%emt 0:05:24]} 25. Qxf5 {[%emt 0:00:24]} gxf5 {[%emt 0:00:00]} 26. Nf4 Nf8 {[%emt 0:00:00]} 27. b4 Kf7 {[%emt 0:01:17]} 28. Nd3 {[%emt 0:01:19]} Rh7 {[%emt 0:02:09]} 29. Ree1 {[%emt 0:04:08]} Bc6 {[%emt 0:04:50]} 30. Nb2 {[%emt 0:03:28]} Nd7 {[%emt 0:02:48]} 31. a5 {[%emt 0:00:55]} Bb5 {[%emt 0:03:28]} 32. Rac1 {[%emt 0:02:40]} Ke8 {[%emt 0:00:00]} 33. c4 dxc4 34. Nxc4 Bxc4 {[%emt 0:00:23]} 35. Rxc4 {[%emt 0:21:04]} c6 {[%emt 0:02:09]} 36. Kg2 {[%emt 0:00:23]} Nf8 {[%emt 0:01:55]} 37. Kf1 {[%emt 0:03:38]} Ng6 {[%emt 0:00:41]} 38. Ke2 {[%emt 0:00:57]} Rf7 {[%emt 0:00:39]} 39. Ke3 {[%emt 0:00:22]} Kd7 {[%emt 0:00:29]} 40. Rec1 {[%emt 0:04:36]} Rc8 {[%emt 0:00:25]} 41. R1c2 {[%emt 0:01:53]} Rc7 {[%emt 0:00:00]} 42. R4c3 {[%emt 0:00:37]} Kc8 {[%emt 0:00:00]} 43. Rc1 {[%emt 0:01:08]} Kb8 {[%emt 0:00:00]} 44. Ra1 Rc8 {[%emt 0:00:42]} 45. Rca3 {[%emt 0:01:07]} Rcf8 {[%emt 0:00:24]} 46. Bf4 {[%emt 0:00:00]} Ne7 {[%emt 0:00:44]} 47. Kd3 {[%emt 0:00:45]} Nd5 {[%emt 0:00:00]} 48. Kc4 {[%emt 0:00:00]} Rd7 {[%emt 0:01:16]} 49. Rd3 {[%emt 0:00:43]} Nc7 {[%emt 0:00:28]} 50. Be3 {[%emt 0:00:52]} Rd5 {[%emt 0:00:45]} 51. Bg5 {[%emt 0:00:00]} Rf7 {[%emt 0:00:00]} 52. Be3 Rb5 {[%emt 0:00:50]} 53. Rb1 {[%emt 0:00:00]} Nd5 {[%emt 0:01:28]} 54. Bf4 {[%emt 0:00:12]} Kc7 {[%emt 0:00:17]} 55. Rdb3 {[%emt 0:00:50]} Kd7 {[%emt 0:01:06]} 56. Kd3 {[%emt 0:00:11]} Rf8 {[%emt 0:00:06]} 57. Kc4 {[%emt 0:00:13]} Rb8 {[%emt 0:00:47]} 58. Bd2 {[%emt 0:03:27]} Kc7 {[%emt 0:00:09]} 59. Bg5 {[%emt 0:00:37]} Rg8 {[%emt 0:01:25]} 60. R1b2 {[%emt 0:00:09]} Rg7 {[%emt 0:00:12]} 61. Rb1 {[%emt 0:00:03]} Rd7 {[%emt 0:00:50]} 62. R1b2 {[%emt 0:00:00]} Kc8 {[%emt 0:00:29]} 63. Bh6 {[%emt 0:00:36]} b6 {[%emt 0:02:11]} 64. Bg5 {[%emt 0:01:16]} Kb7 {[%emt 0:01:27]} 65. Bd2 {[%emt 0:02:04]} Nc7 {[%emt 0:01:41]} 66. Bg5 {[%emt 0:00:00]} Rbd5 {[%emt 0:02:40]} 67. Rd3 {[%emt 0:02:39]} bxa5 {[%emt 0:00:00]} 68. bxa5+ {[%emt 0:00:05]} Nb5 {[%emt 0:00:00]} 69. Be3 {[%emt 0:02:25]} c5 {[%emt 0:02:09]} 70. Rdd2 {[%emt 0:00:00]} cxd4 {[%emt 0:00:00]} 71. Bg5 Rxe5 {[%emt 0:03:01]} 72. Rb4 {[%emt 0:00:41]} Red5 {[%emt 0:00:54]} 73. Kd3 {[%emt 0:04:29]} e5 {[%emt 0:00:34]} 0-1

[Event "XXI Torredembarra Open 2019"]
[Site "Torredembarra"]
[Date "2019.07.13"]
[Round "8.1"]
[White "Dardha, Daniel"]
[Black "Farran Martos, Francesc X."]
[Result "1/2-1/2"]
[ECO "D36"]
[WhiteElo "2420"]
[BlackElo "2432"]
[Annotator "NA"]
[PlyCount "97"]
[EventDate "2019.07.06"]
[EventType "swiss"]
[EventCountry "ESP"]
[SourceTitle "playchess.com"]
[Source "ChessBase"]
[SourceQuality "1"]
[TimeControl "5400+30"]

1. d4 {[%emt 0:00:00]} Nf6 {[%emt 0:00:33]} 2. c4 {[%emt 0:00:00]} e6 {[%emt 0:00:15]} 3. Nc3 {[%emt 0:00:00]} d5 {[%emt 0:01:58]} 4. cxd5 {[%emt 0:12:32]} exd5 {[%emt 0:00:47]} 5. Bg5 {[%emt 0:00:04]} Be7 {[%emt 0:01:43]} 6. e3 {[%emt 0:00:28]} Nbd7 {[%emt 0:03:37]} 7. Bd3 {[%emt 0:01:06]} O-O {[%emt 0:01:51]} 8. Qc2 {[%emt 0:00:47]} c6 {[%emt 0:03:34]} 9. Nge2 {[%emt 0:01:52]} Re8 {[%emt 0:02:09]} 10. O-O {[%emt 0:00:54]} Nf8 {[%emt 0:09:44]} 11. Rad1 {[%emt 0:01:30]} h6 {[%emt 0:09:02]} 12. Bh4 {[%emt 0:01:40]} Ne4 {[%emt 0:05:11]} 13. Bxe7 {[%emt 0:01:44]} Qxe7 {[%emt 0:01:31]} 14. Bxe4 {[%emt 0:03:12]} dxe4 {[%emt 0:01:34]} 15. d5 {[%emt 0:00:28]} Bg4 {[%emt 0:05:43]} 16. dxc6 {[%emt 0:02:42]} bxc6 {[%emt 0:05:54]} 17. Rd4 {[%emt 0:01:24]} Ne6 {[%emt 0:09:41]} 18. Rc4 {[%emt 0:01:03]} Ng5 {[%emt 0:01:46]} 19. Ng3 {[%emt 0:03:49]} f5 {[%emt 0:08:49]} 20. Rxc6 {[%emt 0:06:16]} h5 {[%emt 0:04:21]} 21. Nd5 {[%emt 0:13:20]} Qf7 {[%emt 0:00:56]} 22. Nc7 {[%emt 0:02:02]} h4 {[%emt 0:01:58]} 23. Nxa8 {[%emt 0:00:44]} hxg3 {[%emt 0:01:06]} 24. fxg3 {[%emt 0:03:17]} Rxa8 {[%emt 0:02:51]} 25. h3 {[%emt 0:00:57]} Nxh3+ {[%emt 0:02:13]} 26. gxh3 {[%emt 0:00:08]} Bxh3 {[%emt 0:00:02]} 27. Rd1 {[%emt 0:11:58]} Bg4 {[%emt 0:03:13]} 28. Rd2 {[%emt 0:01:56]} Qxa2 {[%emt 0:01:17]} 29. Qc4+ {[%emt 0:00:42]} Qxc4 {[%emt 0:00:17]} 30. Rxc4 {[%emt 0:00:05]} a6 {[%emt 0:05:16]} 31. Rc7 {[%emt 0:03:26]} Rb8 {[%emt 0:01:25]} 32. Rdd7 {[%emt 0:00:57]} Rxb2 {[%emt 0:01:19]} 33. Rxg7+ {[%emt 0:00:09]} Kf8 {[%emt 0:00:40]} 34. Rcf7+ {[%emt 0:01:31]} Ke8 {[%emt 0:00:27]} 35. Ra7 {[%emt 0:02:28]} Kf8 {[%emt 0:00:13]} 36. Rh7 {[%emt 0:09:32]} Kg8 {[%emt 0:00:14]} 37. Rhc7 {[%emt 0:01:52]} Rb8 {[%emt 0:00:10]} 38. Rxa6 {[%emt 0:00:14]} Rd8 {[%emt 0:00:18]} 39. Ra1 {[%emt 0:00:23]} Kf8 {[%emt 0:00:27]} 40. Kf2 {[%emt 0:00:05]} Kg8 {[%emt 0:01:42]} 41. Ke1 {[%emt 0:00:09]} Kf8 {[%emt 0:00:13]} 42. Rca7 {[%emt 0:06:07]} Rd3 {[%emt 0:00:11]} 43. Rb7 {[%emt 0:01:37]} Rd8 {[%emt 0:00:15]} 44. Rb3 {[%emt 0:00:59]} Kf7 {[%emt 0:00:33]} 45. Ra2 {[%emt 0:01:40]} Rd1+ {[%emt 0:00:42]} 46. Kf2 {[%emt 0:00:01]} Kf6 {[%emt 0:00:22]} 47. Rbb2 {[%emt 0:01:25]} Kg5 {[%emt 0:00:48]} 48. Rd2 {[%emt 0:00:25]} Rh1 {[%emt 0:00:11]} 49. Ra6 {[%emt 0:02:46]} 1/2-1/2

[Event "XXI Torredembarra Open 2019"]
[Site "Torredembarra"]
[Date "2019.07.13"]
[Round "8.2"]
[White "Gonzalez Rodriguez, Jorge A."]
[Black "Pogorelov, Ruslan"]
[Result "0-1"]
[ECO "A37"]
[WhiteElo "2201"]
[BlackElo "2347"]
[Annotator "NA"]
[PlyCount "88"]
[EventDate "2019.07.06"]
[EventType "swiss"]
[EventCountry "ESP"]
[SourceTitle "playchess.com"]
[Source "ChessBase"]
[SourceQuality "1"]
[TimeControl "5400+30"]

1. c4 {[%emt 0:00:00]} c5 {[%emt 0:00:00]} 2. Nc3 {[%emt 0:00:00]} g6 {[%emt 0:00:00]} 3. g3 {[%emt 0:00:00]} Bg7 {[%emt 0:00:03]} 4. Bg2 {[%emt 0:00:00]} Nc6 {[%emt 0:00:15]} 5. d3 {[%emt 0:00:44]} b6 {[%emt 0:01:05]} 6. Nf3 {[%emt 0:00:21]} Bb7 {[%emt 0:00:20]} 7. O-O {[%emt 0:00:02]} d6 {[%emt 0:00:22]} 8. e3 {[%emt 0:04:32]} Bxc3 {[%emt 0:07:14]} 9. bxc3 {[%emt 0:00:01]} Qd7 {[%emt 0:03:48]} 10. e4 {[%emt 0:00:23]} O-O-O {[%emt 0:01:23]} 11. Nd2 {[%emt 0:03:35]} f5 {[%emt 0:03:27]} 12. exf5 {[%emt 0:09:38]} gxf5 {[%emt 0:09:18]} 13. Re1 {[%emt 0:01:13]} Nf6 {[%emt 0:11:06]} 14. Nf3 {[%emt 0:17:27]} Rhg8 15. Bg5 {[%emt 0:10:35]} Rg6 {[%emt 0:18:05]} 16. Bxf6 {[%emt 0:06:44]} Rxf6 {[%emt 0:00:09]} 17. d4 {[%emt 0:00:07]} Na5 {[%emt 0:13:25]} 18. Qd3 {[%emt 0:03:22]} e6 {[%emt 0:04:55]} 19. Nd2 {[%emt 0:05:24]} Bxg2 {[%emt 0:01:18]} 20. Kxg2 {[%emt 0:00:02]} h5 {[%emt 0:02:40]} 21. Qf3 {[%emt 0:04:57]} Qb7 {[%emt 0:00:34]} 22. d5 {[%emt 0:00:02]} e5 {[%emt 0:00:15]} 23. Qxh5 {[%emt 0:12:32]} Qg7 {[%emt 0:01:04]} 24. Qe2 {[%emt 0:00:23]} Rh8 {[%emt 0:01:14]} 25. Rh1 {[%emt 0:02:55]} Rfh6 {[%emt 0:05:52]} 26. f3 {[%emt 0:01:08]} Rh3 {[%emt 0:02:00]} 27. Rae1 {[%emt 0:07:03]} Qh7 {[%emt 0:05:17]} 28. Nf1 {[%emt 0:00:01]} Kc7 {[%emt 0:00:48]} 29. Kf2 {[%emt 0:00:01]} f4 {[%emt 0:01:57]} 30. Qe4 {[%emt 0:10:11]} fxg3+ {[%emt 0:00:33]} 31. Kg2 {[%emt 0:00:20]} Rxh2+ {[%emt 0:04:07]} 32. Rxh2 {[%emt 0:01:30]} gxh2 {[%emt 0:00:30]} 33. Qxh7+ {[%emt 0:00:30]} Rxh7 {[%emt 0:00:30]} 34. Nxh2 Nxc4 {[%emt 0:00:00]} 35. Ng4 {[%emt 0:00:41]} b5 {[%emt 0:00:29]} 36. Nf6 {[%emt 0:00:05]} Rh6 {[%emt 0:00:48]} 37. Ne4 {[%emt 0:00:03]} Kb6 {[%emt 0:00:38]} 38. Kg3 {[%emt 0:00:27]} a5 {[%emt 0:00:25]} 39. Re2 {[%emt 0:00:35]} b4 {[%emt 0:00:30]} 40. cxb4 {[%emt 0:00:01]} cxb4 {[%emt 0:01:13]} 41. Kg4 {[%emt 0:01:05]} a4 {[%emt 0:00:44]} 42. Kg5 {[%emt 0:00:14]} Rh3 {[%emt 0:00:34]} 43. Kg4 {[%emt 0:00:01]} Rh8 {[%emt 0:00:18]} 44. Kf5 {[%emt 0:00:01]} b3 {[%emt 0:04:39]} 0-1

[Event "XXI Torredembarra Open 2019"]
[Site "Torredembarra"]
[Date "2019.07.13"]
[Round "8.3"]
[White "Molano Lafuente, Ismael"]
[Black "Djuric, Stefan"]
[Result "0-1"]
[ECO "B06"]
[WhiteElo "2071"]
[BlackElo "2368"]
[Annotator "NA"]
[PlyCount "120"]
[EventDate "2019.07.06"]
[EventType "swiss"]
[EventCountry "ESP"]
[SourceTitle "playchess.com"]
[Source "ChessBase"]
[SourceQuality "1"]
[TimeControl "5400+30"]

1. e4 {[%emt 0:06:09]} g6 {[%emt 0:00:11]} 2. h4 {[%emt 0:00:30]} d5 {[%emt 0:00:51]} 3. exd5 {[%emt 0:00:08]} Nf6 {[%emt 0:00:26]} 4. Nc3 {[%emt 0:00:13]} a6 {[%emt 0:03:14]} 5. a4 {[%emt 0:03:58]} Bg4 {[%emt 0:05:48]} 6. f3 {[%emt 0:00:50]} Bf5 {[%emt 0:09:54]} 7. Bc4 {[%emt 0:07:06]} c6 {[%emt 0:10:36]} 8. dxc6 {[%emt 0:05:06]} Nxc6 {[%emt 0:00:02]} 9. Nge2 {[%emt 0:02:05]} e5 {[%emt 0:00:25]} 10. d3 {[%emt 0:04:29]} Bc5 {[%emt 0:01:27]} 11. Bg5 {[%emt 0:07:46]} h6 {[%emt 0:00:19]} 12. Bxf6 {[%emt 0:03:04]} Qxf6 {[%emt 0:00:02]} 13. Nd5 {[%emt 0:00:11]} Qd8 {[%emt 0:00:49]} 14. Ng3 {[%emt 0:00:58]} Be6 {[%emt 0:12:29]} 15. Ne4 {[%emt 0:05:33]} Bxd5 {[%emt 0:01:26]} 16. Bxd5 {[%emt 0:00:12]} Be7 {[%emt 0:00:01]} 17. Bxc6+ {[%emt 0:05:42]} bxc6 {[%emt 0:00:01]} 18. h5 {[%emt 0:01:08]} f5 {[%emt 0:00:30]} 19. Nf2 {[%emt 0:02:40]} g5 {[%emt 0:04:43]} 20. Qe2 {[%emt 0:04:22]} O-O {[%emt 0:01:27]} 21. Qxe5 {[%emt 0:12:03]} Bb4+ {[%emt 0:01:01]} 22. Kf1 {[%emt 0:00:20]} Qd7 {[%emt 0:00:35]} 23. c3 {[%emt 0:11:19]} Rae8 {[%emt 0:00:34]} 24. Qd4 {[%emt 0:00:49]} Qxd4 {[%emt 0:04:16]} 25. cxd4 {[%emt 0:00:02]} Re3 {[%emt 0:00:36]} 26. Rh3 {[%emt 0:03:15]} Kg7 {[%emt 0:06:32]} 27. f4 {[%emt 0:06:47]} gxf4 {[%emt 0:01:43]} 28. Rxe3 {[%emt 0:03:58]} fxe3 {[%emt 0:00:01]} 29. Nd1 {[%emt 0:00:47]} f4 {[%emt 0:01:36]} 30. Rc1 {[%emt 0:01:32]} Rf5 {[%emt 0:00:05]} 31. Ke2 {[%emt 0:03:06]} Rxh5 {[%emt 0:00:29]} 32. Rxc6 {[%emt 0:02:33]} Rg5 {[%emt 0:03:03]} 33. Nxe3 {[%emt 0:01:54]} fxe3 {[%emt 0:00:02]} 34. Kxe3 {[%emt 0:00:11]} a5 {[%emt 0:00:44]} 35. Rc2 {[%emt 0:01:05]} Kf6 {[%emt 0:00:46]} 36. Rc6+ {[%emt 0:00:38]} Kf5 {[%emt 0:00:33]} 37. Rxh6 {[%emt 0:01:31]} Rg3+ {[%emt 0:00:13]} 38. Ke2 {[%emt 0:00:43]} Rxg2+ {[%emt 0:02:46]} 39. Kf3 {[%emt 0:00:30]} Rxb2 {[%emt 0:00:20]} 40. Rh5+ {[%emt 0:00:14]} Ke6 {[%emt 0:00:02]} 41. d5+ {[%emt 0:01:04]} Kd6 {[%emt 0:00:05]} 42. Ke4 {[%emt 0:00:02]} Re2+ {[%emt 0:01:36]} 43. Kd4 {[%emt 0:00:15]} Bc5+ {[%emt 0:01:49]} 44. Kc4 {[%emt 0:00:16]} Rc2+ {[%emt 0:00:05]} 45. Kb3 {[%emt 0:01:27]} Rc1 {[%emt 0:00:27]} 46. Kb2 {[%emt 0:00:33]} Rg1 {[%emt 0:00:05]} 47. Kc3 {[%emt 0:00:29]} Rg4 {[%emt 0:00:02]} 48. d4 {[%emt 0:00:33]} Rxd4 {[%emt 0:00:21]} 49. Rh8 {[%emt 0:00:30]} Rxa4 {[%emt 0:00:31]} 50. Kb3 {[%emt 0:00:30]} Rb4+ {[%emt 0:00:10]} 51. Kc2 {[%emt 0:00:16]} Kxd5 {[%emt 0:00:11]} 52. Ra8 {[%emt 0:00:29]} a4 {[%emt 0:00:35]} 53. Kc3 {[%emt 0:00:33]} Rh4 {[%emt 0:00:05]} 54. Rd8+ {[%emt 0:00:40]} Bd6 {[%emt 0:00:03]} 55. Ra8 {[%emt 0:00:32]} Rh3+ {[%emt 0:00:11]} 56. Kb2 {[%emt 0:00:21]} a3+ {[%emt 0:00:04]} 57. Ka2 {[%emt 0:00:07]} Kc4 {[%emt 0:00:23]} 58. Rc8+ {[%emt 0:00:52]} Bc5 {[%emt 0:00:06]} 59. Ra8 {[%emt 0:00:41]} Rh2+ {[%emt 0:00:13]} 60. Kb1 {[%emt 0:00:27]} Kb3 {[%emt 0:00:09]} 0-1

[Event "XXI Torredembarra Open 2019"]
[Site "Torredembarra"]
[Date "2019.07.13"]
[Round "8.4"]
[White "Marina De La Torre, Ivan"]
[Black "Lacasa Diaz, Jose Antonio"]
[Result "1-0"]
[ECO "D04"]
[WhiteElo "2041"]
[BlackElo "2391"]
[Annotator "NA"]
[PlyCount "149"]
[EventDate "2019.07.06"]
[EventType "swiss"]
[EventCountry "ESP"]
[SourceTitle "playchess.com"]
[Source "ChessBase"]
[SourceQuality "1"]
[TimeControl "5400+30"]

1. d4 {[%emt 0:00:00]} Nf6 {[%emt 0:00:00]} 2. Nf3 {[%emt 0:00:00]} g6 {[%emt 0:01:12]} 3. e3 {[%emt 0:02:00]} Bg7 {[%emt 0:00:18]} 4. b3 {[%emt 0:00:29]} c5 {[%emt 0:06:33]} 5. Be2 {[%emt 0:03:02]} O-O {[%emt 0:01:08]} 6. O-O {[%emt 0:00:30]} d5 {[%emt 0:00:30]} 7. Bb2 {[%emt 0:00:30]} cxd4 {[%emt 0:00:30]} 8. Nxd4 {[%emt 0:00:30]} Nbd7 {[%emt 0:08:59]} 9. c4 {[%emt 0:08:39]} dxc4 {[%emt 0:01:02]} 10. Bxc4 {[%emt 0:00:23]} a6 {[%emt 0:00:30]} 11. Nc3 {[%emt 0:02:29]} e5 {[%emt 0:03:26]} 12. Nc2 {[%emt 0:04:49]} b5 {[%emt 0:01:35]} 13. Be2 {[%emt 0:00:08]} Bb7 {[%emt 0:01:17]} 14. Rc1 {[%emt 0:01:53]} Qb6 {[%emt 0:09:15]} 15. Bf3 {[%emt 0:01:33]} Rfd8 {[%emt 0:06:35]} 16. Bxb7 {[%emt 0:00:23]} Qxb7 {[%emt 0:00:06]} 17. Qe2 {[%emt 0:00:42]} Nc5 {[%emt 0:14:46]} 18. Rfd1 {[%emt 0:01:44]} e4 {[%emt 0:00:17]} 19. Ne1 {[%emt 0:07:37]} Ne6 {[%emt 0:07:58]} 20. Rxd8+ {[%emt 0:02:45]} Rxd8 {[%emt 0:00:15]} 21. Rd1 {[%emt 0:00:14]} Rc8 {[%emt 0:00:14]} 22. Qd2 {[%emt 0:00:59]} h5 {[%emt 0:02:36]} 23. Ne2 {[%emt 0:10:40]} Rc7 {[%emt 0:11:50]} 24. h3 {[%emt 0:00:00]} Kh7 {[%emt 0:02:13]} 25. Kf1 {[%emt 0:00:00]} h4 {[%emt 0:02:53]} 26. Rc1 {[%emt 0:00:00]} Rd7 {[%emt 0:00:41]} 27. Qc2 {[%emt 0:00:00]} Qd5 {[%emt 0:02:11]} 28. Nd4 {[%emt 0:00:00]} Rc7 {[%emt 0:02:40]} 29. Qb1 {[%emt 0:00:24]} Rxc1 {[%emt 0:01:20]} 30. Qxc1 {[%emt 0:00:08]} Nc5 {[%emt 0:00:41]} 31. Qc2 {[%emt 0:03:05]} Nfd7 {[%emt 0:00:32]} 32. Qe2 {[%emt 0:00:28]} Ne5 {[%emt 0:00:50]} 33. Ba3 {[%emt 0:01:44]} Ncd3 {[%emt 0:01:21]} 34. Ndc2 {[%emt 0:04:47]} a5 {[%emt 0:02:26]} 35. Qd2 {[%emt 0:06:21]} b4 {[%emt 0:03:58]} 36. Bc1 {[%emt 0:00:06]} Qb5 {[%emt 0:00:31]} 37. Nd4 {[%emt 0:01:50]} Qc5 {[%emt 0:00:27]} 38. Ne2 {[%emt 0:03:45]} Nxe1 {[%emt 0:00:55]} 39. Qxe1 {[%emt 0:00:55]} Nd3 {[%emt 0:00:27]} 40. Qd2 {[%emt 0:02:18]} f5 {[%emt 0:00:37]} 41. Qd1 {[%emt 0:01:30]} Be5 {[%emt 0:00:30]} 42. Bd2 {[%emt 0:00:50]} Bb2 {[%emt 0:01:37]} 43. Nf4 {[%emt 0:02:18]} Be5 {[%emt 0:01:34]} 44. Nxd3 {[%emt 0:04:02]} exd3 {[%emt 0:00:01]} 45. e4 {[%emt 0:00:10]} Qc2 {[%emt 0:01:08]} 46. Ke1 {[%emt 0:00:29]} fxe4 {[%emt 0:00:59]} 47. Qxc2 {[%emt 0:04:27]} dxc2 {[%emt 0:00:01]} 48. Bc1 {[%emt 0:00:08]} Bc3+ {[%emt 0:01:28]} 49. Ke2 {[%emt 0:00:12]} Bd4 {[%emt 0:00:44]} 50. Kd2 {[%emt 0:00:24]} Bxf2 {[%emt 0:00:06]} 51. Kxc2 {[%emt 0:00:06]} Kg7 {[%emt 0:00:42]} 52. Bg5 {[%emt 0:00:45]} Kf7 {[%emt 0:01:04]} 53. Bd8 {[%emt 0:00:23]} Ke6 {[%emt 0:00:19]} 54. Bxa5 {[%emt 0:01:11]} Bc5 {[%emt 0:00:01]} 55. Kd2 {[%emt 0:00:56]} Kf5 {[%emt 0:00:25]} 56. Ke2 {[%emt 0:00:25]} Be7 {[%emt 0:00:44]} 57. Bc7 {[%emt 0:00:52]} g5 {[%emt 0:00:20]} 58. Bb8 {[%emt 0:02:05]} Bc5 {[%emt 0:00:42]} 59. Bc7 {[%emt 0:00:24]} Be7 {[%emt 0:00:02]} 60. Bb8 {[%emt 0:00:13]} Ke6 {[%emt 0:00:51]} 61. Ke3 {[%emt 0:01:08]} Kd5 {[%emt 0:00:01]} 62. Ba7 {[%emt 0:00:33]} Bd6 {[%emt 0:00:15]} 63. Bb6 {[%emt 0:01:31]} Bb8 {[%emt 0:00:05]} 64. Ke2 {[%emt 0:00:48]} Ke5 {[%emt 0:00:30]} 65. Be3 {[%emt 0:01:04]} Bd6 {[%emt 0:00:54]} 66. Bxg5 {[%emt 0:02:14]} Kd4 {[%emt 0:00:00]} 67. Bf6+ {[%emt 0:00:11]} Be5 {[%emt 0:00:09]} 68. Be7 {[%emt 0:01:46]} Kc3 {[%emt 0:00:02]} 69. Ke3 {[%emt 0:00:15]} Bg3 {[%emt 0:00:17]} 70. Kxe4 {[%emt 0:00:21]} Be1 {[%emt 0:00:02]} 71. Bf6+ {[%emt 0:01:09]} Kc2 {[%emt 0:00:08]} 72. Ke3 {[%emt 0:00:27]} Kb1 {[%emt 0:00:55]} 73. Kd3 {[%emt 0:00:15]} Kxa2 {[%emt 0:00:07]} 74. Kc4 {[%emt 0:00:07]} Ka3 {[%emt 0:01:22]} 75. Be7 {[%emt 0:02:03]} 1-0

[Event "XXI Torredembarra Open 2019"]
[Site "Torredembarra"]
[Date "2019.07.13"]
[Round "8.5"]
[White "Iagar, Razvan-Gabriel"]
[Black "Castillo Dalmau, Arnau"]
[Result "1-0"]
[ECO "E15"]
[WhiteElo "2138"]
[BlackElo "1957"]
[Annotator "NA"]
[PlyCount "134"]
[EventDate "2019.07.06"]
[EventType "swiss"]
[EventCountry "ESP"]
[SourceTitle "playchess.com"]
[Source "ChessBase"]
[SourceQuality "1"]
[TimeControl "5400+30"]

1. d4 {[%emt 0:00:00]} Nf6 {[%emt 0:00:00]} 2. c4 {[%emt 0:00:03]} e6 {[%emt 0:00:06]} 3. Nf3 {[%emt 0:00:30]} b6 {[%emt 0:00:30]} 4. g3 {[%emt 0:00:00]} Ba6 {[%emt 0:00:31]} 5. b3 {[%emt 0:00:00]} Bb4+ {[%emt 0:00:56]} 6. Bd2 {[%emt 0:00:00]} Be7 {[%emt 0:00:31]} 7. Bg2 {[%emt 0:00:00]} c6 {[%emt 0:01:05]} 8. Bc3 {[%emt 0:00:00]} d5 {[%emt 0:01:15]} 9. Ne5 {[%emt 0:00:12]} Nfd7 {[%emt 0:00:50]} 10. Nxd7 {[%emt 0:00:07]} Nxd7 {[%emt 0:00:09]} 11. Nd2 {[%emt 0:00:04]} O-O {[%emt 0:00:33]} 12. O-O {[%emt 0:00:06]} Nf6 {[%emt 0:00:34]} 13. e4 {[%emt 0:00:15]} b5 {[%emt 0:00:30]} 14. e5 {[%emt 0:00:30]} Nd7 {[%emt 0:00:30]} 15. cxd5 {[%emt 0:00:30]} cxd5 {[%emt 0:00:30]} 16. b4 {[%emt 0:00:30]} Rc8 {[%emt 0:00:30]} 17. Rc1 {[%emt 0:03:56]} Nb6 {[%emt 0:06:58]} 18. Nb3 {[%emt 0:02:21]} Na4 {[%emt 0:04:13]} 19. Nc5 {[%emt 0:04:39]} Bxc5 {[%emt 0:02:07]} 20. dxc5 {[%emt 0:00:46]} Nxc3 {[%emt 0:01:40]} 21. Rxc3 {[%emt 0:00:01]} Bb7 {[%emt 0:03:14]} 22. Rc1 {[%emt 0:05:17]} Bc6 {[%emt 0:01:51]} 23. Qd4 {[%emt 0:00:16]} a5 {[%emt 0:01:17]} 24. a3 {[%emt 0:00:43]} Ra8 {[%emt 0:01:15]} 25. Ra1 {[%emt 0:01:17]} axb4 {[%emt 0:05:44]} 26. axb4 {[%emt 0:00:06]} Qc7 {[%emt 0:05:02]} 27. Rfb1 {[%emt 0:03:57]} Rxa1 {[%emt 0:00:18]} 28. Rxa1 {[%emt 0:00:13]} Ra8 {[%emt 0:02:15]} 29. Rxa8+ {[%emt 0:01:06]} Bxa8 {[%emt 0:00:09]} 30. Qa1 {[%emt 0:01:12]} Bc6 {[%emt 0:01:18]} 31. Bf1 {[%emt 0:01:02]} g6 {[%emt 0:01:53]} 32. f4 {[%emt 0:00:59]} Qd7 {[%emt 0:01:11]} 33. Bg2 {[%emt 0:01:32]} Qc8 {[%emt 0:01:08]} 34. Kf2 {[%emt 0:01:17]} Qd7 {[%emt 0:04:16]} 35. Qa6 {[%emt 0:06:03]} Kg7 {[%emt 0:03:44]} 36. Ke2 {[%emt 0:02:03]} h5 {[%emt 0:01:12]} 37. Kd3 {[%emt 0:01:51]} Kg8 {[%emt 0:01:36]} 38. Kd4 {[%emt 0:00:50]} Kg7 {[%emt 0:01:04]} 39. Bf1 {[%emt 0:02:14]} Kg8 {[%emt 0:01:06]} 40. Qb6 {[%emt 0:00:34]} Qe8 {[%emt 0:00:36]} 41. h3 {[%emt 0:07:40]} Kg7 {[%emt 0:04:20]} 42. Bd3 {[%emt 0:00:00]} Qa8 {[%emt 0:07:57]} 43. Qa5 {[%emt 0:00:00]} Qe8 {[%emt 0:00:23]} 44. Qa6 {[%emt 0:00:00]} Qd7 {[%emt 0:00:54]} 45. g4 {[%emt 0:00:00]} hxg4 {[%emt 0:02:12]} 46. hxg4 {[%emt 0:00:00]} Kg8 {[%emt 0:02:20]} 47. Qb6 {[%emt 0:00:42]} Qe8 {[%emt 0:02:45]} 48. f5 {[%emt 0:11:00]} Kg7 {[%emt 0:02:37]} 49. f6+ {[%emt 0:04:00]} Kg8 {[%emt 0:01:39]} 50. Qa7 {[%emt 0:02:34]} Kh7 {[%emt 0:01:19]} 51. g5 {[%emt 0:01:28]} Qf8 {[%emt 0:04:04]} 52. Qc7 {[%emt 0:02:04]} Be8 {[%emt 0:03:25]} 53. Qd6 {[%emt 0:03:22]} Kg8 {[%emt 0:01:31]} 54. Be2 {[%emt 0:05:10]} Bd7 {[%emt 0:03:19]} 55. Qxd7 {[%emt 0:00:06]} Qa8 {[%emt 0:00:05]} 56. Ke3 {[%emt 0:01:06]} d4+ {[%emt 0:01:38]} 57. Kf2 {[%emt 0:02:07]} d3 {[%emt 0:00:14]} 58. Bxd3 {[%emt 0:00:34]} Qa2+ {[%emt 0:01:18]} 59. Be2 {[%emt 0:00:06]} Qa8 {[%emt 0:00:23]} 60. Bxb5 {[%emt 0:00:18]} Qa2+ {[%emt 0:00:52]} 61. Be2 {[%emt 0:00:02]} Qa8 {[%emt 0:00:05]} 62. c6 {[%emt 0:02:49]} Qb8 {[%emt 0:00:20]} 63. c7 {[%emt 0:03:00]} Qa7+ {[%emt 0:00:14]} 64. Kg2 {[%emt 0:00:27]} Qa8+ {[%emt 0:00:10]} 65. Kh2 {[%emt 0:00:42]} Qf8 {[%emt 0:00:21]} 66. c8=Q {[%emt 0:02:29]} Kh7 {[%emt 0:00:04]} 67. Qcb7 {[%emt 0:00:58]} Qd8 {[%emt 0:00:37]} 1-0